Cogmind - Beta 17.1 @@@ ROGUE MODE // 2026.09.21 @ 04:34:36 Player: aihara Result: Destroyed by G-47 Trooper with Particle Gun Performance ------------- Evolutions (0) 0 Regions Visited (2) 400 Robots Destroyed (17) 85 Value Destroyed (454) 454 Prototype IDs (0) 0 Alien Tech Used (0) 0 Bonus (-46) -46 TOTAL SCORE: 893 Bonus ------- Friendly Fire -46 Cogmind --------- Core Integrity 0/250 Matter 372/400 Energy 125/125 System Corruption 3% Temperature Cool (9) Movement Rolling (110) Location -10/Subcaves Parts ------- > --- POWER (1) -------- Light Ion Engine > --- PROPULSION (2) --- Aluminum Leg Subdweller Monowheel > --- UTILITY (2) ------ Small Storage Unit Medium Matter Pod > --- WEAPON (2) ------- Assault Rifle Flamer > --- INVENTORY (8) ---- Light Nuclear Core Light Treads Aluminum Leg Wheel Improved Heat Sink Subdweller Optics Targeting Computer Subdweller Machine Gun Peak State ------------ > --- POWER ------------ Light Nuclear Core > --- PROPULSION ------- Aluminum Leg Subdweller Monowheel > --- UTILITY ---------- Small Storage Unit Medium Matter Pod > --- WEAPON ----------- Assault Rifle Flamer > --- INVENTORY -------- Light Ion Engine Light Treads Aluminum Leg Wheel Improved Heat Sink Subdweller Optics Targeting Computer Subdweller Machine Gun [Rating: 12] Favorites ----------- Power Ion Engine Engine Ion Engine Power Core Light Nuclear Core Propulsion Light Treads Treads Light Treads Leg Aluminum Leg Wheel Subdweller Monowheel Utility Small Storage Unit Storage Small Storage Unit Weapon Assault Rifle Ballistic Gun Assault Rifle Special Weapon Flamer Build | -11 -10 -10 ------- Run | Yrd Mat Sub Slots Evolved . | . . . Power . | . . . Propulsion . | . . . Utility . | . . . Weapon . | . . . Parts Attached 16 | 7 5 4 Power 3 | 1 1 1 Engine 2 | 1 . 1 Core 1 | . 1 . Reactor . | . . . Propulsion 6 | 3 1 2 Treads 2 | 2 . . Leg 2 | 1 1 . Wheel 2 | . . 2 Hover . | . . . Flight . | . . . Utility 2 | 1 1 . Device . | . . . Storage 2 | 1 1 . Processor . | . . . Hackware . | . . . Protection . | . . . Artifact . | . . . Weapon 5 | 2 2 1 Energy Gun . | . . . Energy Cannon . | . . . Ballistic Gun 4 | 2 2 . Ballistic Cannon . | . . . Launcher . | . . . Special Weapon 1 | . . 1 Impact Weapon . | . . . Slashing Weapon . | . . . Piercing Weapon . | . . . Special Melee Weapon . | . . . Unidentified Prototypes . | . . . Parts Lost 4 | . 3 1 Power . | . . . Propulsion 2 | . 1 1 Utility . | . . . Weapon 2 | . 2 . Highest Loss Streak 1 | . 1 1 To Critical Strikes . | . . . Average Backups 6 | 4 6 6 Power . | . 1 . Propulsion 2 | 3 3 2 Utility 1 | . 1 2 Weapon 1 | . 1 . Tool/Special . | . . . Unused Backups 7 | . 2 5 Power . | . . . Propulsion 3 | . 2 1 Utility 3 | . . 3 Weapon 1 | . . 1 Tool/Special . | . . . Average Slot Usage (%) 98 | . 98 98 Engine 9 | . 12 2 Core 4 | . 1 11 Treads 13 | . 20 . Leg 10 | . 6 18 Wheel 2 | . . 8 Storage 27 | . 27 28 Ballistic Gun 25 | . 27 20 Special Weapon 2 | . . 7 Peak Build Rating 12 | 6 9 12 Average Rating 7 | 4 7 10 On Entrance 5 | . 6 9 Avg Prop Armor Cover (%) 8 | . . 8 Naked Turns . | . . . Heaviest Build 16 | 14 16 16 Greatest Support 40 | 40 40 20 Greatest Overweight (x) 2 | 2 . 1 Average Overweight (x) . | . . . Largest Inventory Capacity 8 | 8 8 8 Average Capacity 7 | 7 8 8 Most Carried 8 | 6 8 8 Average Carried 6 | 4 6 6 Final Capacity 8 | 8 8 8 Final Carried 8 | 6 5 8 Class Distribution -------------------- 100% | Mutant Dominant Class ---------------- Mutant | -10/Materials Mutant | -10/Subcaves Resources | -11 -10 -10 ----------- Run | Yrd Mat Sub Matter Collected 804 | 252 385 167 Remotely . | . . . Salvage Created 559 | . 455 104 Parts 37 | . 29 8 Haulers Intercepted . | . . . Recyclers Shooed . | . . . Parts Field Recycled . | . . . Retrieved Matter . | . . . Parts Self-Destructed 4 | . . 4 Prevented . | . . . Parts Restored . | . . . Kills | -11 -10 -10 ------- Run | Yrd Mat Sub Combat Hostiles Destroyed 16 | . 14 2 Guns 16 | . 14 2 Classes Destroyed 5 | . 3 2 Watcher 1 | . 1 . Swarmer 6 | . 6 . Grunt 8 | . 8 . Subdweller 2 | . . 2 Scientist 1 | . . 1 Best Kill Streak 4 | . 4 1 Combat Bots Only 4 | . 4 1 Max Kills in Single Turn 1 | . 1 1 Gunslinging . | . . . Exploded . | . . . Melee . | . . . Uniques/NPCs Destroyed . | . . . Combat | -11 -10 -10 -------- Run | Yrd Mat Sub Hostile Shots Fired 124 | . 101 23 Missed 34 | . 26 8 Hits 90 | . 75 15 Projectile 90 | . 75 15 Critical Strikes 1 | . . 1 Damage Taken 1173 | . 883 290 Core 256 | . 164 92 Absorbed by Shields . | . . . Core Remaining (%) 100 | 100 . . Volleys Fired 67 | . 51 16 Largest 2 | . 2 2 Hottest 120 | . 40 120 Shots Fired 130 | . 101 29 Gun 124 | . 101 23 Cannon . | . . . Launcher . | . . . Special 6 | . . 6 Kinetic 124 | . 101 23 Thermal 6 | . . 6 Explosive . | . . . Electromagnetic . | . . . Robot Hit Streak 11 | . 11 5 Robot Miss Streak 4 | . 4 2 Penetration Max . | . . . Secondary Targets 3 | . 3 . Max Gunslinging Chain 1 | . 1 . Shots Hit Robots 84 | . 65 19 Core Hits 33 | . 25 8 Critical Kills 2 | . 2 . Critical Parts Destroyed 1 | . 1 . Critical Strikes 3 | . 3 . Destroy 3 | . 3 . Melee Attacks . | . . . Impact . | . . . Slashing . | . . . Piercing . | . . . Sneak Attacks . | . . . Combat Hostiles . | . . . Follow-up Attacks . | . . . Damage Inflicted 1065 | . 833 232 Guns 1010 | . 825 185 Cannons . | . . . Explosions . | . . . Melee . | . . . Ramming 8 | . 8 . Kinetic 1010 | . 825 185 Thermal 47 | . . 47 Explosive . | . . . Electromagnetic . | . . . Impact . | . . . Slashing . | . . . Piercing . | . . . Highest Corruption 3 | . 3 3 Average Corruption 2 | . 2 3 Corruption Purged . | . . . Corruption Blocked . | . . . Effects 10 | . 3 7 Message Errors 1 | . . 1 Heat Flow Errors 1 | . . 1 Energy Discharges 1 | . . 1 Parts Rejected 1 | . . 1 Data Loss (minor) 1 | . . 1 Misfires 3 | . 2 1 Weapon Failures 2 | . 1 1 Overload Shots . | . . . Overflow Damage . | . . . Projectiles . | . . . Explosions . | . . . Melee . | . . . Knockbacks . | . . . Impact . | . . . Kinetic . | . . . Secondary . | . . . Self-Inflicted Damage . | . . . Shots . | . . . Rammed 2 | . 2 . Targets Rammed 3 | . 3 . Kicked 1 | . 1 . Crushed . | . . . Highest Temperature 202 | . 12 202 Average Temperature 22 | . 3 102 Received Heat Transfer 423 | . 348 75 Siege Activations . | . . . Martial Activations . | . . . Shielding Activations . | . . . Robots Disrupted . | . . . Combat Hostiles . | . . . Robots Corrupted . | . . . Combat Hostiles . | . . . Parts Fried . | . . . Impact Corruptions . | . . . Robots Melted . | . . . Combat Hostiles . | . . . Parts Melted . | . . . Heat Transferred 320 | . . 320 Parts Sabotaged . | . . . Parts Stolen . | . . . Parts Stripped . | . . . Power Chain Reactions . | . . . Alert | -11 -10 -10 ------- Run | Yrd Mat Sub Maximum Alert Level . | . . . Low Security (%) 100 | 100 100 . Level 1 . | . . . Level 2 . | . . . Level 3 . | . . . Level 4 . | . . . Level 5 . | . . . High Security . | . . . Max Security . | . . . Peak Influence 188 | . 188 . Initial . | . . . Average 53 | . 59 . Influence Increases 417 | . 417 . Destroy 0b10 Robot/C 280 | . 280 . Destroy 0b10 Robot/NC 5 | . 5 . Destroy Leader 62 | . 62 . Successful Hack 10 | . 10 . Lose Combat Pursuer 60 | . 60 . Influence Decreases 417 | . 395 22 Entered New Map 11 | . . 11 Time Decay 230 | . 219 11 Lost Part 26 | . 26 . Purge Threat 150 | . 150 . Squads Dispatched 2 | . 2 . Investigation . | . . . Extermination . | . . . Reinforcement 2 | . 2 . Assault . | . . . Garrison . | . . . Intercept . | . . . Searches Triggered . | . . . Construction Impeded . | . . . Haulers Reinforced . | . . . Active Scanning Responses . | . . . Cargo Convoy Interrupts . | . . . Stealth | -11 -10 -10 --------- Run | Yrd Mat Sub Distress Signals 1 | . 1 . Communications Jammed . | . . . Distress Signals . | . . . Times Spotted 29 | . 25 4 Peak Tracking Total 4 | . 4 2 Tactical Retreats 3 | . 3 . Traps | -11 -10 -10 ------- Run | Yrd Mat Sub Traps Triggered 2 | . 2 . Indirectly . | . . . Trap Hack Attempts . | . . . Triggered . | . . . Disarmed . | . . . Reprogrammed . | . . . Reused . | . . . Traps Extracted . | . . . Installed . | . . . Triggered . | . . . Machines | -11 -10 -10 ---------- Run | Yrd Mat Sub Machines Disabled . | . . . Max in Single Turn . | . . . Machines Repaired . | . . . Machines Dismantled . | . . . Machines Sabotaged . | . . . Overloaded Fab Kills . | . . . Hacking | -11 -10 -10 --------- Run | Yrd Mat Sub Machines Accessed 4 | . 4 . Terminals 3 | . 3 . Fabricators . | . . . Repair Stations . | . . . Recycling Units 1 | . 1 . Scanalyzers . | . . . Garrison Access . | . . . Total Hacks 11 | . 11 . Successful 5 | . 5 . Failed 6 | . 6 . Catastrophic 3 | . 3 . Database Lockouts . | . . . Manual . | . . . Terminals 8 | . 8 . Fabricators . | . . . Repair Stations . | . . . Recycling Units 3 | . 3 . Scanalyzers . | . . . Garrison Access . | . . . Terminal Hacks 3 | . 3 . Unreport Threat 1 | . 1 . Hauler Manifests 1 | . 1 . Zone Layout 1 | . 1 . Fabricator Hacks . | . . . Repair Station Hacks . | . . . Recycling Unit Hacks 2 | . 2 . Report Inventory 1 | . 1 . Retrieve Matter 1 | . 1 . Scanalyzer . | . . . Garrison Access Hacks . | . . . Unauthorized Hacks . | . . . Terminals . | . . . Fabricators . | . . . Repair Stations . | . . . Recycling Units . | . . . Scanalyzers . | . . . Garrison Access . | . . . Data Cores Recovered . | . . . Used . | . . . Hacking Detections 4 | . 4 . Full Trace Events 3 | . 3 . Feedback Events 1 | . 1 . Corruption 1 | . 1 . Feedback Blocked . | . . . Robot Schematics Acquired . | . . . Robots Built . | . . . Authchips . | . . . Time . | . . . Total Robot Build Rating . | . . . Part Schematics Acquired . | . . . Parts Built . | . . . Authchips . | . . . Time . | . . . Total Part Build Rating . | . . . Part Studies Acquired . | . . . Parts Repaired . | . . . Time . | . . . Parts Recycled . | . . . Recycled Matter . | . . . Retrieved Matter . | . . . Retrieved Components . | . . . Parts Scanalyzed . | . . . Part Schematics Acquired . | . . . Parts Damaged . | . . . Bothacking | -11 -10 -10 ------------ Run | Yrd Mat Sub Used RIF Installer . | . . . Robots Hacked . | . . . Non-combat . | . . . Combat . | . . . Robot Hacks Applied . | . . . Relay Couplers Released . | . . . Fabnet Peak Effective % . | . . . Robots Rewired . | . . . Allies Hacked . | . . . Hacks Repelled . | . . . Allies | -11 -10 -10 -------- Run | Yrd Mat Sub Total Allies . | . . . Largest Group . | . . . Highest-Rated Group . | . . . Highest-Rated Ally . | . . . Total Orders . | . . . Ally Attacks . | . . . Total Damage . | . . . Kills . | . . . Allies Corrupted . | . . . Allies Melted . | . . . Intel | -11 -10 -10 ------- Run | Yrd Mat Sub Active Infowar (turns) . | . . . Robot Analysis Total . | . . . Derelict Logs Recovered . | . . . Drone Launches . | . . . Drone Recoveries . | . . . Exploration | -11 -10 -10 ------------- Run | Yrd Mat Sub Turns Passed 1224 | 90 765 369 Spaces Moved 686 | 57 374 255 Core 24 | 24 . . Treads 310 | 30 280 . Legs 188 | 3 94 91 Wheels 164 | . . 164 Hover . | . . . Flight . | . . . Fastest Speed 50 | 50 120 95 Average Speed 134 | 124 149 115 Slowest Speed 190 | 190 160 190 Overloaded Moves . | . . . Propulsion Burnouts . | . . . Robots Hopped . | . . . Potential Cave-ins . | . . . Cave-ins Triggered . | . . . Exploration Rate (%) 27 | 4 55 22 Regions Visited 2 Branch Regions 1 Pre-discovered Areas . | . . . Known Exits Taken . | . . . Unknown Exits Taken 2 | 1 1 . Scrap Searched 3 | . . 3 Spaces Dug . | . . . Terrain Destroyed . | . . . Melee . | . . . Projectile . | . . . AOE . | . . . Terrain Rammed . | . . . Walls Destroyed . | . . . Machines Disabled . | . . . Actions | -11 -10 -10 --------- Run | Yrd Mat Sub Total 842 | 71 477 294 Wait 53 | . 37 16 Move 684 | 56 373 255 Hop . | . . . Pick Up 13 | 6 4 3 Fast Attach 8 | 6 1 1 Attach 4 | . 3 1 Detach . | . . . Swap 7 | 3 2 2 Drop 3 | . 3 . Fire 67 | . 51 16 Melee . | . . . Ram . | . . . Kick 1 | . 1 . Crush 2 | . 2 . Escape Stasis . | . . . Rewire . | . . . Trap . | . . . Miscellaneous . | . . . Route ------- -11/Scrapyard -10/Materials (discovered 3 exits: [*Mat] / [*Min] / [*Sub]) -10/Subcaves History --------- Turn | Location | Event 38 | -11/Scrapyard | Discovered new exit (range 16) 91 | -11/Scrapyard | Entered Materials 270 | -10/Materials | Discovered new exit (range 7) 311 | -10/Materials | Build established: Mutant 597 | -10/Materials | Discovered new exit (range 8) 734 | -10/Materials | Discovered new exit (range 3) 746 | -10/Materials | Core integrity fell below 50% 856 | -10/Materials | Entered Subcaves 857 | -10/Subcaves | Approached by a straggling Scientist 956 | -10/Subcaves | Disturbed a concealed Subdweller 996 | -10/Subcaves | Core integrity fell below 20% 1225 | -10/Subcaves | Destroyed by G-47 Trooper with Particle Gun Last Messages --------------- 01023_ Searching scrap... 01023_ Found Sub. Monowheel. 01023_ Found 43 Matter. 01026_ Acquired 10 matter. 01029_ Acquired Flamer. 01032_ Acquired 4 matter. 01035_ Subatomizers dissect the Disposable Heat Sink. 01086_ System corrupted: Component data lost. 01103_ System corrupted: Energy discharge (-59). 01152_ System corrupted: Lgt. Nuclear Core rejected. 01165_ System corrupted: Assault Rifle jammed. 01171_ F0-I0P(R) destroyed. 01177_ Acquired Lgt. Nuclear Core. 01178_ Acquired 12 matter. 01182_ Subatomizers dissect the Disposable Heat Sink. 01190_ System corrupted: Heat flow error (+242). 01223_ Critical hit (Burn: +37). Map ----- +----------------------------------------------------+ | ??????????## #??????????????????????????????? | | ???????????# #??????????????????????????????? | | ???????????## ## ##?????????????????????????????? | | ?????????####### #?????????????????????????????? | | ?????????? "## ##?????????????????????????????? | | ???????????#!#" #??????????????????????????????? | | ???????????# & #??????????????????????????????? | | ???????????#*#" #??????????????????????????????? | | ???????????### #??????????????????????????????? | | ???????????# #??????????????????????????????? | | ???????????# ### #??????????????????????????????? | | ???????????##### #??????????????????????????????? | | ??????????????# #??????????????????????????????? | | ??????????????# ##??????????????????????????????? | | ??????????????# #???????????????????????????????? | | ??????????????## ##??????????????????????????????? | | ??????????????## ##?????????????????????????????? | | ??????????????# #?????????????????????????????? | | ??????????????## #?????????????????????????????? | | ???????????????# #?????????????????????????????? | | ???????????????# #?????????????????????????????? | | ???????????????# #?????????????????????????????? | | ??????????????## " ##????????????????????????????? | | ??????????????# " ####?????????????????????????? | | ?????????????## <&# ##### #???????????????????? | | ?????????????#